bitfinex-derivatives/quotes_SOLF0:USTF0_20241206
["timestamp","ask_amount","ask_price","bid_price","bid_amount"]
[1733453672034,12.10431579,243.01,242.86,1.212]
[1733453672231,9.30403409,243.02,242.86,1.212]
[1733453672446,12.10958859,243.01,242.86,1.212]
[1733453672630,9.30403409,243.02,242.86,1.212]
[1733453672938,12.10958859,243.01,242.86,1.212]
[1733453673237,9.30403409,243.02,242.86,1.212]
[1733453673442,12.11557948,243.01,242.86,1.212]
[1733453673739,9.30403409,243.02,242.86,1.212]
[1733453674037,12.11560385,243.01,242.86,1.212]
[1733453674239,9.30403409,243.02,242.86,1.212]
[1733453674436,12.12167747,243.01,242.86,1.212]
[1733453674636,12.12167747,243.0,242.86,1.212]
[1733453674831,12.12167747,242.99,242.86,1.212]
[1733453675037,12.12167747,242.98,242.86,1.212]
[1733453675234,2.52,242.97,242.86,1.212]
[1733453676339,2.52,242.97,242.87,8.78602409]
[1733453676637,2.52,242.97,242.86,1.212]
[1733453676833,12.14358258,242.96,242.87,8.78602409]
[1733453677039,2.52,242.97,242.87,8.78602409]
[1733453677240,12.14388328,242.96,242.88,2.02703721]
[1733453677441,12.14388328,242.95,242.89,2.10052683]
[1733453677639,12.16265684,243.0,242.91,8.78602409]
[1733453677840,0.51801,243.02,242.91,8.78602409]
[1733453678037,12.16109856,243.01,242.98,5.61811545]
[1733453678236,0.51801,243.02,242.98,5.61811545]
[1733453678436,8.13811545,243.07,242.98,5.61811545]
[1733453678631,21.17240219,243.06,242.98,5.61811545]
[1733453678837,21.17240219,243.05,242.98,5.61811545]
[1733453679038,12.1594304,243.04,242.98,5.61811545]
[1733453679239,12.1594304,243.03,242.98,5.61811545]
[1733453679535,8.13811545,243.08,242.98,5.61811545]
[1733453679740,21.1713591,243.07,242.98,5.61811545]
[1733453679949,12.15883479,243.06,243.01,5.61811545]
[1733453680138,12.15883479,243.05,243.01,5.61811545]
[1733453680338,2.52,243.08,243.01,5.61811545]
[1733453680537,12.15285386,243.07,243.01,5.61811545]
[1733453680833,12.15285386,243.06,243.01,5.61811545]
[1733453681036,2.52,243.08,243.01,5.61811545]
[1733453681232,12.1491721,243.07,243.01,5.61811545]
[1733453681440,12.1491721,243.06,242.99,5.61811545]
[1733453681635,2.52,243.08,242.99,5.61811545]
[1733453683942,8.13811545,243.08,242.99,5.61811545]
[1733453685234,8.13811545,243.08,242.97,5.61811545]
[1733453685642,2.52,243.08,242.97,5.61811545]
[1733453685944,8.13811545,243.08,242.99,5.61811545]
[1733453689839,8.13811545,243.08,243.01,5.61811545]
[1733453690646,5.61811545,243.08,243.01,5.61811545]
[1733453690846,2.83681,243.1,243.01,5.61811545]
[1733453691749,0.41681,243.1,243.01,5.61811545]
[1733453691948,0.41681,243.1,242.97,1.2098]
[1733453691949,0.41681,243.1,243.04,5.61811545]
[1733453692144,0.41681,243.1,242.97,1.2098]
[1733453692145,0.41681,243.1,243.06,5.61811545]
[1733453693040,0.41681,243.1,243.08,5.61811545]
[1733453701255,5.61811545,243.21,243.08,8.03811545]
[1733453701454,21.14996744,243.2,243.12,5.61811545]
[1733453701752,21.14996744,243.19,243.12,5.61811545]
[1733453702052,21.14996744,243.18,243.12,5.61811545]
[1733453702258,21.14996744,243.17,243.12,5.61811545]
[1733453702455,12.14659637,243.16,243.12,5.61811545]
[1733453702661,12.14659637,243.15,243.12,5.61811545]
[1733453702863,5.61811545,243.21,243.12,5.61811545]
[1733453703065,21.14119406,243.2,243.12,5.61811545]
[1733453703258,21.14119406,243.19,243.12,5.61811545]
[1733453703564,21.14119406,243.18,243.12,5.61811545]
[1733453703763,12.14157577,243.17,243.12,5.61811545]
[1733453704062,5.61811545,243.21,243.12,5.61811545]
[1733453704262,12.13400336,243.2,243.12,5.61811545]
[1733453704561,5.61811545,243.21,243.12,5.61811545]
[1733453704764,12.13399968,243.2,243.12,5.61811545]
[1733453704964,5.61811545,243.21,243.12,5.61811545]
[1733453705165,12.13089779,243.2,243.11,5.61811545]
[1733453705463,5.61811545,243.21,243.11,5.61811545]
[1733453705664,12.13115344,243.2,243.11,5.61811545]
[1733453705859,5.61811545,243.21,243.11,5.61811545]
[1733453706061,12.13115344,243.2,243.11,5.61811545]
[1733453706363,5.61811545,243.21,243.11,5.61811545]
[1733453706563,12.12833988,243.2,243.11,5.61811545]
[1733453706760,5.61811545,243.21,243.13,5.61811545]
[1733453709062,5.61811545,243.23,243.15,5.61811545]
[1733453710368,5.61811545,243.25,243.15,5.61811545]
[1733453712074,21.08678112,243.24,243.15,5.61811545]
[1733453712261,12.11034498,243.23,243.15,5.61811545]
[1733453712564,12.11034498,243.22,243.15,5.61811545]
[1733453712769,5.61811545,243.25,243.15,5.61811545]
[1733453712972,21.08269036,243.24,243.15,5.61811545]
[1733453713163,17.72611136,243.23,243.15,5.61811545]
[1733453713365,12.10799591,243.22,243.15,5.61811545]
[1733453713565,5.61811545,243.23,243.15,5.61811545]
[1733453713766,12.10647465,243.22,243.15,5.61811545]
[1733453713966,5.61811545,243.23,243.15,5.61811545]
[1733453714564,5.61811545,243.23,243.1,1.2313]
[1733453714565,5.61811545,243.21,243.11,8.03811545]
[1733453714970,5.61811545,243.21,243.13,5.61811545]
[1733453715170,2.42,243.28,243.13,5.61811545]
[1733453715171,5.61811545,243.23,243.13,5.61811545]
[1733453715373,12.10610015,243.22,243.13,5.61811545]
[1733453715570,5.61811545,243.21,243.13,5.61811545]
[1733453716270,12.10854448,243.2,243.13,5.61811545]
[1733453716576,5.61811545,243.21,243.13,5.61811545]
[1733453716869,12.10859268,243.2,243.13,5.61811545]
[1733453717075,5.61811545,243.21,243.13,5.61811545]
[1733453717375,12.11139294,243.2,243.13,5.61811545]
[1733453717570,5.61811545,243.22,243.13,5.61811545]
[1733453717874,12.11119559,243.21,243.13,5.61811545]
[1733453718067,2.42,243.28,243.15,5.61811545]
[1733453718274,5.61811545,243.24,243.15,5.61811545]
[1733453718472,12.11439627,243.23,243.15,5.61811545]
[1733453718674,12.11439627,243.22,243.15,5.61811545]
[1733453718868,5.61811545,243.24,243.15,5.61811545]
[1733453720176,5.61811545,243.22,243.13,5.61811545]
[1733453720876,5.61811545,243.22,243.15,5.61811545]
[1733453721278,5.61811545,243.22,243.1,1.2313]
[1733453721472,5.61811545,243.2,243.11,5.61811545]
[1733453723275,5.61811545,243.22,243.13,5.61811545]
[1733453725575,5.61811545,243.24,243.15,5.61811545]
[1733453725776,12.13917263,243.23,243.15,5.61811545]
[1733453725976,12.13917263,243.22,243.15,5.61811545]
[1733453726181,5.61811545,243.24,243.15,5.61811545]
[1733453726384,12.14042626,243.23,243.15,5.61811545]
[1733453726581,8.99873903,243.22,243.15,5.61811545]
[1733453726881,5.61811545,243.24,243.15,5.61811545]
[1733453727083,21.13902175,243.23,243.17,5.61811545]
[1733453727286,21.13902175,243.22,243.17,5.61811545]
[1733453727577,12.14034425,243.21,243.17,5.61811545]
[1733453727777,5.61811545,243.26,243.17,5.61811545]
[1733453727973,21.14182088,243.25,243.17,5.61811545]
[1733453728178,21.14182088,243.24,243.17,5.61811545]
[1733453728383,21.14182088,243.23,243.17,5.61811545]
[1733453728586,12.14195259,243.22,243.17,5.61811545]
[1733453728887,12.14195259,243.21,243.17,5.61811545]
[1733453729087,12.14195259,243.2,243.17,5.61811545]
[1733453729284,12.14195259,243.25,243.17,5.61811545]
[1733453729586,21.14691397,243.24,243.17,5.61811545]
[1733453729782,12.14488948,243.23,243.17,5.61811545]
[1733453729984,12.14488948,243.22,243.17,5.61811545]
[1733453730185,5.61811545,243.26,243.17,5.61811545]
[1733453730379,21.15083647,243.25,243.17,5.61811545]
[1733453730682,21.15083647,243.24,243.17,5.61811545]
[1733453730978,12.14712913,243.23,243.17,5.61811545]
[1733453731184,12.14712913,243.22,243.17,5.61811545]
[1733453731377,12.14712913,243.21,243.17,5.61811545]
[1733453731585,5.61811545,243.26,243.17,5.61811545]
[1733453731885,21.15537212,243.25,243.17,5.61811545]
[1733453732082,21.15537212,243.24,243.17,5.61811545]
[1733453732390,21.15537212,243.23,243.15,5.61811545]
[1733453732584,12.14974599,243.22,243.15,5.61811545]
[1733453732783,12.14974599,243.21,243.15,5.61811545]
[1733453732978,12.14974599,243.25,243.15,5.61811545]
[1733453733186,26.77886929,243.24,243.15,5.61811545]
[1733453733385,5.61811545,243.22,243.12,5.61811545]
[1733453733583,21.16075384,243.21,243.12,5.61811545]
[1733453733780,21.16075384,243.2,243.12,5.61811545]
[1733453733985,12.15283684,243.19,243.12,5.61811545]
[1733453734287,12.15283684,243.18,243.12,5.61811545]
[1733453734491,8.03811545,243.22,243.12,5.61811545]
[1733453734688,12.16307341,243.21,243.12,5.61811545]
[1733453734889,12.16307341,243.2,243.12,5.61811545]
[1733453735088,8.03811545,243.22,243.12,5.61811545]
[1733453735293,12.16899834,243.21,243.12,5.61811545]
[1733453735590,12.16899834,243.2,243.12,5.61811545]
[1733453735986,8.03811545,243.22,243.12,5.61811545]
[1733453736185,12.16973407,243.21,243.12,5.61811545]
[1733453736385,12.16973407,243.2,243.12,5.61811545]
[1733453736590,8.03811545,243.22,243.12,5.61811545]
[1733453736791,21.19803682,243.21,243.12,5.61811545]
[1733453736992,12.17423188,243.2,243.12,5.61811545]
[1733453737291,12.17423188,243.19,243.12,5.61811545]
[1733453737493,8.03811545,243.22,243.12,5.61811545]
[1733453737693,12.17805502,243.21,243.12,5.61811545]
[1733453737888,12.17805502,243.2,243.12,5.61811545]
[1733453738094,8.03811545,243.22,243.12,5.61811545]
[1733453738393,12.18093749,243.21,243.12,5.61811545]
[1733453738593,12.18093749,243.2,243.12,5.61811545]
[1733453738795,8.03811545,243.22,243.12,5.61811545]
[1733453738994,12.18087829,243.21,243.12,5.61811545]
[1733453739193,12.18087829,243.2,243.12,5.61811545]
[1733453739393,8.03811545,243.22,243.12,5.61811545]
[1733453739394,12.18087829,243.21,243.12,5.61811545]
[1733453739689,12.18423461,243.2,243.12,5.61811545]
[1733453739993,12.18426932,243.19,243.12,5.61811545]
[1733453740190,8.03811545,243.22,243.12,5.61811545]
[1733453740494,21.22258024,243.21,243.12,5.61811545]
[1733453740694,21.22258024,243.2,243.12,5.61811545]
[1733453740893,12.18832967,243.19,243.12,5.61811545]
[1733453741094,12.18832967,243.18,243.12,5.61811545]
[1733453741394,8.03811545,243.22,243.12,5.61811545]
[1733453741589,21.23040198,243.21,243.12,5.61811545]
[1733453741787,21.23040198,243.2,243.12,5.61811545]
[1733453742093,12.19282155,243.19,243.12,5.61811545]
[1733453742690,2.42,243.22,243.12,5.61811545]
[1733453743200,21.23612649,243.21,243.12,5.61811545]
[1733453743494,21.23612649,243.2,243.12,5.61811545]
[1733453743797,12.19628171,243.19,243.12,5.61811545]
[1733453744091,2.42,243.22,243.15,5.61811545]
[1733453744291,21.25415969,243.21,243.15,5.61811545]
[1733453744491,21.25415969,243.2,243.1,1.2313]
[1733453744697,2.42,243.22,243.13,5.61811545]
[1733453744698,12.20646745,243.19,243.13,5.61811545]
[1733453744997,12.20646745,243.18,243.13,5.61811545]
[1733453745192,12.20646745,243.21,243.13,5.61811545]
[1733453745398,21.25485669,243.2,243.13,5.61811545]
[1733453745594,12.20686731,243.19,243.13,5.61811545]
[1733453745898,2.42,243.22,243.13,5.61811545]
[1733453746097,21.25475679,243.21,243.13,5.61811545]
[1733453746393,21.25475679,243.2,243.13,5.61811545]
[1733453746593,12.20679252,243.19,243.13,5.61811545]
[1733453746797,12.20679252,243.18,243.13,5.61811545]
[1733453747003,5.61811545,243.24,243.13,5.61811545]
[1733453747297,21.26520382,243.23,243.13,5.61811545]
[1733453747492,21.26520382,243.22,243.16,5.61811545]
[1733453747698,2.42,243.24,243.16,5.61811545]
[1733453747699,21.26520382,243.21,243.16,5.61811545]
[1733453747899,12.21281236,243.2,243.16,5.61811545]
[1733453748089,2.42,243.24,243.16,5.61811545]
[1733453748397,21.26675938,243.23,243.16,5.61811545]
[1733453748699,21.26675938,243.22,243.16,5.61811545]
[1733453748996,21.26675938,243.21,243.16,5.61811545]
[1733453749297,21.26675938,243.2,243.16,5.61811545]
[1733453749498,21.26675938,243.19,243.14,5.61811545]
[1733453749690,21.26675938,243.18,243.14,5.61811545]
[1733453749895,12.21370851,243.17,243.14,5.61811545]
[1733453750095,12.21370851,243.16,243.14,5.61811545]
[1733453750296,8.03811545,243.24,243.14,5.61811545]
[1733453750593,28.60851425,243.23,243.14,5.61811545]
[1733453750794,28.60851425,243.22,243.1,1.2313]
[1733453750999,12.21627103,243.21,243.14,5.61811545]
[1733453751395,8.03811545,243.24,243.14,5.61811545]
[1733453751396,21.2712181,243.2,243.14,5.61811545]
[1733453751596,21.2712181,243.19,243.14,5.61811545]
[1733453751898,21.2712181,243.18,243.14,5.61811545]
[1733453752089,12.21627103,243.17,243.14,5.61811545]
[1733453752290,12.21627103,243.16,243.14,5.61811545]
[1733453752496,12.21627103,243.23,243.14,5.61811545]
[1733453752695,28.61476223,243.22,243.14,5.61811545]
[1733453752896,28.61412313,243.21,243.11,5.61811545]
[1733453753097,28.61412313,243.2,243.11,5.61811545]
[1733453753401,28.61342304,243.19,243.11,5.61811545]
[1733453753592,21.27585564,243.18,243.11,5.61811545]
[1733453753797,21.27585564,243.17,243.11,5.61811545]
[1733453754098,21.27585564,243.16,243.11,5.61811545]
[1733453754298,21.27585564,243.15,243.11,5.61811545]
[1733453754494,21.27585564,243.14,243.11,5.61811545]
[1733453754696,12.21893406,243.13,243.11,5.61811545]
[1733453755001,2.42,243.24,243.11,5.61811545]
[1733453755201,16.39281002,243.23,243.15,5.61811545]
[1733453755501,28.6094071,243.22,243.15,5.61811545]
[1733453755804,28.6094071,243.21,243.15,5.61811545]
[1733453756099,2.42,243.24,243.15,5.61811545]
[1733453756100,21.27179269,243.2,243.15,5.61811545]
[1733453756301,21.27179269,243.19,243.15,5.61811545]
[1733453756502,21.27179269,243.18,243.15,5.61811545]
[1733453756702,9.05519561,243.17,243.15,5.61811545]
[1733453756901,2.42,243.24,243.15,5.61811545]
[1733453757200,21.27054562,243.23,243.15,5.61811545]
[1733453757401,21.27054562,243.22,243.1,1.2313]
[1733453757601,21.27054562,243.21,243.14,5.61811545]
[1733453757803,12.2158826,243.2,243.14,5.61811545]
[1733453758002,12.2158826,243.19,243.14,5.61811545]
[1733453758303,2.42,243.24,243.14,5.61811545]
[1733453758505,21.2728059,243.23,243.14,5.61811545]
[1733453758708,21.2728059,243.22,243.14,5.61811545]
[1733453759006,21.2728059,243.21,243.14,5.61811545]
[1733453759204,12.21718172,243.2,243.14,5.61811545]
[1733453759405,12.21718172,243.19,243.14,5.61811545]
[1733453759598,2.42,243.22,243.14,5.61811545]
[1733453759803,21.27520868,243.21,243.14,5.61811545]
[1733453760002,12.21856022,243.2,243.14,5.61811545]
[1733453760306,2.42,243.22,243.14,5.61811545]
[1733453760307,12.21856022,243.19,243.14,5.61811545]
[1733453760605,2.42,243.22,243.09,1.2288]
[1733453760807,21.27347993,243.21,243.14,5.61811545]
[1733453761007,12.2175679,243.2,243.14,5.61811545]
[1733453761203,2.42,243.22,243.14,5.61811545]
[1733453762202,12.21790807,243.21,243.14,5.61811545]
[1733453762602,12.21790807,243.2,243.14,5.61811545]
[1733453762806,12.21790807,243.19,243.14,5.61811545]
[1733453763005,2.42,243.22,243.14,5.61811545]
[1733453763206,21.26922653,243.21,243.14,5.61811545]
[1733453763407,12.21512533,243.2,243.14,5.61811545]
[1733453763608,12.21512533,243.21,243.14,5.61811545]
[1733453763809,2.42,243.22,243.14,5.61811545]
[1733453763810,12.21512533,243.2,243.14,5.61811545]
[1733453764008,2.42,243.22,243.14,5.61811545]
[1733453764009,12.21512533,243.19,243.14,5.61811545]
[1733453764204,12.21512533,243.18,243.09,1.2288]
[1733453764409,12.21512533,243.17,243.14,5.61811545]
[1733453764609,2.42,243.22,243.14,5.61811545]
[1733453764809,21.27426743,243.21,243.14,5.61811545]
[1733453765011,21.27426743,243.2,243.14,5.61811545]
[1733453765210,21.27426743,243.19,243.14,5.61811545]
[1733453765506,12.21801884,243.18,243.14,5.61811545]
[1733453765711,12.21801884,243.17,243.14,5.61811545]
[1733453765913,2.42,243.22,243.14,5.61811545]
[1733453766110,21.26939416,243.21,243.14,5.61811545]
[1733453766307,2.42,243.22,243.14,5.61811545]
[1733453766308,21.26939416,243.2,243.14,5.61811545]
[1733453766509,12.2152198,243.19,243.14,5.61811545]
[1733453766713,12.2152198,243.18,243.14,5.61811545]
[1733453766912,2.42,243.22,243.12,5.61811545]
[1733453767112,21.26846009,243.21,243.12,5.61811545]
[1733453767412,21.26846009,243.2,243.12,5.61811545]
[1733453767611,21.26846009,243.19,243.12,5.61811545]
[1733453767815,12.21468519,243.18,243.12,5.61811545]
[1733453768006,12.21468519,243.21,243.12,5.61811545]
[1733453768207,21.26866182,243.2,243.12,5.61811545]
[1733453768513,21.26866182,243.19,243.12,5.61811545]
[1733453768716,12.21468519,243.18,243.12,5.61811545]
[1733453768910,2.42,243.22,243.12,5.61811545]
[1733453769110,21.26896896,243.21,243.12,5.61811545]
[1733453769311,12.21498026,243.2,243.12,5.61811545]
[1733453769614,21.26896896,243.19,243.12,5.61811545]
[1733453769814,12.21498026,243.18,243.12,5.61811545]
[1733453770115,12.21498026,243.17,243.12,5.61811545]
[1733453770306,2.42,243.22,243.12,5.61811545]
[1733453770515,21.26986962,243.21,243.12,5.61811545]
[1733453770708,21.26986962,243.2,243.12,5.61811545]
[1733453770914,12.21538321,243.19,243.12,5.61811545]
[1733453771110,12.21538321,243.21,243.12,5.61811545]
[1733453771311,21.26999959,243.2,243.12,5.61811545]
[1733453771615,12.21538321,243.19,243.12,5.61811545]
[1733453771815,12.21538321,243.18,243.12,5.61811545]
[1733453772015,12.21538321,243.17,243.12,5.61811545]
[1733453772315,12.21538321,243.16,243.12,5.61811545]
[1733453772516,2.42,243.22,243.12,5.61811545]
[1733453772711,21.26731225,243.21,243.12,5.61811545]
[1733453773018,21.26731225,243.2,243.12,5.61811545]
[1733453773315,21.26731225,243.19,243.12,5.61811545]
[1733453773513,21.26731225,243.18,243.12,5.61811545]
[1733453773718,12.21402849,243.17,243.12,5.61811545]
[1733453774017,12.21402849,243.16,243.15,5.61811545]
[1733453774315,2.42,243.23,243.15,5.61811545]
[1733453774516,21.26744821,243.22,243.15,5.61811545]
[1733453774816,21.26744821,243.21,243.15,5.61811545]
[1733453775014,21.26744821,243.2,243.15,5.61811545]
[1733453775217,21.26744821,243.19,243.15,5.61811545]
[1733453775420,12.21410951,243.18,243.15,5.61811545]
[1733453775622,12.21410951,243.17,243.15,5.61811545]
[1733453775821,2.42,243.23,243.15,5.61811545]
[1733453776021,21.27353787,243.22,243.15,5.61811545]
[1733453776222,21.27353787,243.21,243.15,5.61811545]
[1733453776420,21.27353787,243.2,243.15,5.61811545]
[1733453776622,21.27353787,243.19,243.15,5.61811545]
[1733453777116,12.21760715,243.18,243.15,5.61811545]
[1733453777321,12.21760715,243.17,243.15,5.61811545]
[1733453777520,2.42,243.23,243.15,5.61811545]
[1733453777718,21.27476612,243.22,243.15,5.61811545]
[1733453777918,21.27476612,243.21,243.15,5.61811545]
[1733453778124,21.27476612,243.2,243.15,5.61811545]
[1733453778321,21.27476612,243.19,243.15,5.61811545]
[1733453778520,12.21831261,243.18,243.15,5.61811545]
[1733453778726,12.21831261,243.17,243.15,5.61811545]
[1733453778919,2.4,243.23,243.15,5.61811545]
[1733453779222,21.28068391,243.22,243.15,5.61811545]
[1733453779423,21.28068391,243.21,243.15,5.61811545]
[1733453779624,21.28049273,243.2,243.15,5.61811545]
[1733453779825,12.22171124,243.19,243.15,5.61811545]
[1733453780014,12.22171124,243.18,243.15,5.61811545]
[1733453780220,2.4,243.23,243.15,5.61811545]
[1733453780420,21.28051256,243.22,243.15,5.61811545]
[1733453780620,21.28051256,243.21,243.15,5.61811545]
[1733453780922,12.2216112,243.2,243.15,5.61811545]
[1733453781123,12.2216112,243.19,243.15,5.61811545]
[1733453781325,2.4,243.23,243.15,5.61811545]
[1733453781524,21.2800526,243.22,243.15,5.61811545]
[1733453781726,21.2800526,243.21,243.15,5.61811545]
[1733453781922,12.22134819,243.2,243.15,5.61811545]
[1733453782221,12.22134819,243.19,243.15,5.61811545]
[1733453782421,2.4,243.23,243.15,5.61811545]
[1733453782624,21.28082888,243.22,243.15,5.61811545]
[1733453782817,21.28082888,243.21,243.15,5.61811545]
[1733453783121,21.28082888,243.2,243.15,5.61811545]
[1733453783321,12.22179347,243.19,243.15,5.61811545]
[1733453783525,2.4,243.23,243.15,5.61811545]
[1733453783725,21.27914776,243.22,243.15,5.61811545]
[1733453783925,21.27914776,243.21,243.15,5.61811545]
[1733453784125,21.27914776,243.2,243.15,5.61811545]
[1733453784427,12.22082799,243.19,243.15,5.61811545]
[1733453784618,12.22082799,243.18,243.15,5.61811545]
[1733453784820,12.22082799,243.22,243.15,5.61811545]
[1733453785023,21.28121303,243.21,243.17,5.61811545]
[1733453785322,12.22211522,243.2,243.17,5.61811545]
[1733453785521,12.22211522,243.25,243.19,5.61811545]
[1733453785727,21.28100552,243.24,243.19,5.61811545]
[1733453785926,21.28100552,243.23,243.19,5.61811545]
[1733453786127,21.28100552,243.22,243.19,5.61811545]
[1733453786329,12.22190358,243.21,243.19,5.61811545]
[1733453786525,21.28119579,243.2,243.19,5.61811545]
[1733453788032,12.22190358,243.2,243.19,5.61811545]
[1733453788924,8.01811545,243.29,243.19,5.61811545]
[1733453789132,28.61619545,243.28,243.19,5.61811545]
[1733453789329,28.61619545,243.27,243.19,5.61811545]
[1733453789529,21.27729853,243.26,243.19,5.61811545]
[1733453789830,21.27729853,243.25,243.19,5.61811545]
[1733453790032,21.27729853,243.24,243.19,5.61811545]
[1733453790228,21.27729853,243.23,243.19,5.61811545]
[1733453790423,12.21977933,243.22,243.19,5.61811545]
[1733453790628,12.21977933,243.21,243.19,5.61811545]
[1733453790824,5.61811545,243.28,243.19,5.61811545]
[1733453791029,28.60869948,243.27,243.19,5.61811545]
[1733453791328,21.27170994,243.26,243.19,5.61811545]
[1733453791525,21.27170994,243.25,243.19,5.61811545]
[1733453791729,21.27170994,243.24,243.19,5.61811545]
[1733453791931,5.61811545,243.28,243.19,5.61811545]
[1733453791932,21.27170994,243.23,243.19,5.61811545]
[1733453792134,12.21656909,243.22,243.19,5.61811545]
[1733453792429,12.21656909,243.21,243.19,5.61811545]
[1733453792731,5.61811545,243.28,243.19,5.61811545]
[1733453792932,21.26683909,243.27,243.19,5.61811545]
[1733453793129,26.88495454,243.26,243.18,5.61811545]
[1733453793325,21.26683909,243.25,243.18,5.61811545]
[1733453793528,21.26683909,243.24,243.18,5.61811545]
[1733453793729,21.26683909,243.23,243.18,5.61811545]
[1733453793931,21.26683909,243.22,243.18,5.61811545]
[1733453794134,5.61811545,243.26,243.18,5.61811545]
[1733453794333,21.26555658,243.25,243.18,5.61811545]
[1733453794536,12.21302072,243.24,243.18,5.61811545]
[1733453794728,12.21302072,243.23,243.18,5.61811545]
[1733453795032,5.61811545,243.26,243.18,5.61811545]
[1733453795329,21.26483278,243.25,243.18,5.61811545]
[1733453795531,12.21261739,243.24,243.18,5.61811545]
[1733453795723,12.21261739,243.23,243.18,5.61811545]
[1733453795925,5.61811545,243.26,243.18,5.61811545]
[1733453796129,21.2639143,243.25,243.18,5.61811545]
[1733453796433,12.21209019,243.24,243.18,5.61811545]
[1733453796632,12.21209019,243.23,243.18,5.61811545]
[1733453796934,5.61811545,243.28,243.18,5.61811545]
[1733453797138,21.26277107,243.27,243.2,5.61811545]
[1733453797329,21.26277107,243.26,243.2,5.61811545]
[1733453797531,21.26277107,243.25,243.16,2.541]
[1733453797833,21.26238336,243.24,243.2,5.61811545]
[1733453798026,12.21143314,243.23,243.2,5.61811545]
[1733453798226,5.61811545,243.28,243.2,5.61811545]
[1733453798434,21.26218766,243.27,243.13,2.4]
[1733453798733,21.26218766,243.26,243.18,5.61811545]
[1733453798923,21.26218766,243.25,243.18,5.61811545]
[1733453799130,21.26218766,243.24,243.18,5.61811545]
[1733453799442,12.21109756,243.23,243.18,5.61811545]
[1733453799630,12.21109756,243.27,243.18,5.61811545]
[1733453799828,21.26317887,243.26,243.18,5.61811545]
[1733453800033,21.26317887,243.25,243.18,5.61811545]
[1733453800229,21.26317887,243.24,243.18,5.61811545]
[1733453800535,12.21109756,243.23,243.18,5.61811545]
[1733453800736,12.21109756,243.22,243.18,5.61811545]
[1733453800938,5.61811545,243.28,243.18,5.61811545]
[1733453801237,21.26491603,243.27,243.18,5.61811545]
[1733453801536,21.26491603,243.26,243.18,5.61811545]
[1733453801736,21.26491603,243.25,243.18,5.61811545]
[1733453801936,21.26491603,243.24,243.18,5.61811545]
[1733453802236,21.26491603,243.23,243.18,5.61811545]
[1733453802537,12.2126795,243.22,243.18,5.61811545]
[1733453802733,12.2126795,243.21,243.18,5.61811545]
[1733453802932,5.61811545,243.28,243.18,5.61811545]
[1733453803237,21.26536706,243.27,243.18,5.61811545]
[1733453803431,21.26536706,243.26,243.18,5.61811545]
[1733453803631,21.26536706,243.25,243.18,5.61811545]
[1733453803839,21.26536706,243.24,243.18,5.61811545]
[1733453804036,21.26536706,243.23,243.18,5.61811545]
[1733453804237,12.21292218,243.22,243.18,5.61811545]
[1733453804432,12.21292218,243.21,243.18,5.61811545]
[1733453804736,5.61811545,243.28,243.18,5.61811545]
[1733453804928,21.26602484,243.27,243.18,5.61811545]
[1733453805131,21.26602484,243.26,243.18,5.61811545]
[1733453805334,21.26602484,243.25,243.18,5.61811545]
[1733453805530,21.26602484,243.24,243.13,2.4]
[1733453805731,21.26602484,243.23,243.17,5.61811545]
[1733453805939,12.21330049,243.22,243.17,5.61811545]
[1733453806137,12.21330049,243.21,243.17,5.61811545]
[1733453806340,5.61811545,243.28,243.17,5.61811545]
[1733453806540,21.26632261,243.27,243.17,5.61811545]
[1733453806841,21.26632261,243.26,243.17,5.61811545]
[1733453807141,21.26632261,243.25,243.17,5.61811545]
[1733453807341,21.26632261,243.24,243.17,5.61811545]
[1733453807639,21.26632261,243.23,243.17,5.61811545]
[1733453807838,12.21347145,243.22,243.17,5.61811545]
[1733453808040,12.21347145,243.21,243.17,5.61811545]
[1733453808232,12.21347145,243.28,243.17,5.61811545]
[1733453808440,26.88545377,243.27,243.17,5.61811545]
[1733453808638,21.26733832,243.26,243.17,5.61811545]
[1733453808941,21.26733832,243.25,243.1,2.4795]
[1733453809141,21.26733832,243.24,243.11,2.4]
[1733453809333,5.61811545,243.27,243.11,2.4]
[1733453809334,21.26733832,243.23,243.11,2.4]
[1733453809537,12.21405477,243.22,243.11,2.4]
[1733453809834,12.21439159,243.21,243.13,5.61811545]
[1733453810033,2.4,243.23,243.13,5.61811545]
[1733453810236,12.21444179,243.22,243.13,5.61811545]
[1733453810437,12.21444179,243.21,243.13,5.61811545]
[1733453810734,2.4,243.23,243.13,5.61811545]
[1733453810938,12.2148803,243.22,243.13,5.61811545]
[1733453811134,12.2148803,243.21,243.13,5.61811545]
[1733453811334,12.2148803,243.2,243.13,5.61811545]
[1733453811534,2.4,243.23,243.13,5.61811545]
[1733453811740,21.27035454,243.22,243.13,5.61811545]
[1733453812038,5.61811545,243.2,243.09,1.63918]
[1733453812236,5.61811545,243.14,243.09,0.41038]
[1733453813440,22.96595065,243.3,243.12,5.61811545]
[1733453813736,29.8364931,243.29,243.14,5.61811545]
[1733453814043,5.61811545,243.25,243.17,5.61811545]
[1733453814241,21.26312842,243.24,243.17,5.61811545]